Cogmind - Beta 10.1 @@@ ROGUE MODE // 2020.10.21 @ 07:04:23 Player: Demise Result: Destroyed by S-10 Pest with Light Assault Rifle Performance ------------- Evolutions (0) 0 Regions Visited (1) 200 Robots Destroyed (29) 145 Value Destroyed (535) 535 Prototype IDs (0) 0 Alien Tech Used (0) 0 Bonus (0) 0 TOTAL SCORE: 880 Bonus ------- None Cogmind --------- Core Integrity 0/250 Matter 221/300 Energy 158/160 System Corruption 5% Temperature Cool (0) Movement Rolling (100) Ox2 Location -10/Materials Parts ------- > --- POWER (1) -------- Light Nuclear Core > --- PROPULSION (2) --- Wheel Wheel > --- UTILITY (2) ------ Large Storage Unit Large Storage Unit > --- WEAPON (2) ------- Assault Rifle Assault Rifle > --- INVENTORY (16) --- Ion Engine Aluminum Leg Aluminum Leg Heat Sink Large Storage Unit Large Matter Pod (150) Signal Interpreter Improved Terrain Scanner Seismic Analyzer Core Shielding Core Shielding Assault Rifle Grenade Launcher Datajack Mining Laser Peak State ------------ > --- POWER ------------ Light Nuclear Core > --- PROPULSION ------- Wheel Wheel > --- UTILITY ---------- Large Storage Unit Large Storage Unit > --- WEAPON ----------- Medium Laser Assault Rifle > --- INVENTORY -------- Ion Engine Aluminum Leg Aluminum Leg Aluminum Leg Heat Sink Large Storage Unit Large Matter Pod Signal Interpreter Improved Terrain Scanner Seismic Analyzer Utility Shielding Assault Rifle Assault Rifle Grenade Launcher Datajack Mining Laser [Rating: 10] Favorites ----------- Power Ion Engine Engine Ion Engine Power Core Light Nuclear Core Propulsion Light Treads Treads Light Treads Leg Aluminum Leg Wheel Wheel Utility Large Storage Unit Storage Large Storage Unit Weapon Assault Rifle Energy Gun Medium Laser Ballistic Gun Assault Rifle Special Weapon Mining Laser Special Melee Weapon Datajack Build | -11 -10 ------- Run | Scr Mat Slots Evolved . | . . Power . | . . Propulsion . | . . Utility . | . . Weapon . | . . Parts Attached 24 | 3 21 Power 2 | . 2 Engine 1 | . 1 Core 1 | . 1 Reactor . | . . Propulsion 7 | 2 5 Treads 4 | 2 2 Leg . | . . Wheel 3 | . 3 Hover . | . . Flight . | . . Utility 6 | 1 5 Device . | . . Storage 6 | 1 5 Processor . | . . Hackware . | . . Protection . | . . Artifact . | . . Weapon 9 | . 9 Energy Gun 3 | . 3 Energy Cannon . | . . Ballistic Gun 4 | . 4 Ballistic Cannon . | . . Launcher . | . . Special Weapon 1 | . 1 Impact Weapon . | . . Slashing Weapon . | . . Piercing Weapon . | . . Special Melee Weapon 1 | . 1 Unidentified Prototypes . | . . Parts Lost 4 | . 4 Power 1 | . 1 Propulsion 2 | . 2 Utility . | . . Weapon 1 | . 1 Highest Loss Streak 2 | . 2 Average Slot Usage (%) 97 | . 97 Engine 10 | . 10 Core 3 | . 3 Treads 13 | . 13 Wheel 12 | . 12 Storage 28 | . 28 Energy Gun 12 | . 12 Ballistic Gun 13 | . 13 Naked Turns . | . . Heaviest Build 41 | 16 41 Greatest Support 40 | 40 40 Greatest Overweight (x) 3 | . 3 Average Overweight (x) 1 | . 1 Largest Inventory Capacity 16 | 8 16 Average Capacity 13 | 7 13 Most Carried 16 | 8 16 Average Carried 12 | 6 13 Final Capacity 16 | 8 16 Final Carried 15 | 8 15 Class Distribution -------------------- 100% | Mutant Dominant Class ---------------- Mutant | -10/Materials Resources | -11 -10 ----------- Run | Scr Mat Matter Collected 905 | 287 618 Remotely . | . . Salvage Created 965 | 200 765 Parts 60 | 23 37 Haulers Intercepted 2 | . 2 Recyclers Shooed 1 | . 1 Parts Field Recycled . | . . Retrieved Matter . | . . Parts Self-Destructed . | . . Prevented . | . . Kills | -11 -10 ------- Run | Scr Mat Combat Hostiles Destroyed 16 | . 16 Melee 1 | . 1 Guns 15 | . 15 Classes Destroyed 8 | 3 5 Worker 2 | 2 . Tunneler 5 | 5 . Hauler 2 | . 2 Recycler 2 | 1 1 Operator 1 | . 1 Watcher 1 | . 1 Swarmer 5 | . 5 Grunt 11 | . 11 Best Kill Streak 4 | 4 4 Combat Bots Only 4 | . 4 Max Kills in Single Turn 1 | 1 1 Gunslinging . | . . Exploded . | . . Melee 1 | . 1 Uniques/NPCs Destroyed . | . . Combat | -11 -10 -------- Run | Scr Mat Damage Taken 1282 | . 1282 Core 256 | . 256 Absorbed by Shields . | . . Core Remaining (%) 100 | 100 . Volleys Fired 111 | 19 92 Largest 2 | 2 2 Hottest 100 | 60 100 Shots Fired 212 | 36 176 Gun 205 | 36 169 Cannon . | . . Launcher . | . . Special 7 | . 7 Kinetic 115 | 19 96 Thermal 97 | 17 80 Explosive . | . . Electromagnetic . | . . Robot Hit Streak 10 | 8 10 Robot Miss Streak 5 | 2 5 Penetration Max . | . . Secondary Targets 1 | . 1 Max Gunslinging Chain 1 | . 1 Shots Hit Robots 126 | 25 101 Core Hits 47 | 9 38 Critical Hits . | . . Critical Kills . | . . Critical Parts Destroyed . | . . Melee Attacks 1 | . 1 Impact . | . . Slashing . | . . Piercing . | . . Sneak Attacks 1 | . 1 Combat Hostiles . | . . Follow-up Attacks . | . . Damage Inflicted 1536 | 280 1256 Guns 1518 | 280 1238 Cannons . | . . Explosions . | . . Melee . | . . Ramming 18 | . 18 Kinetic 871 | 175 696 Thermal 647 | 105 542 Explosive . | . . Electromagnetic . | . . Impact . | . . Slashing . | . . Piercing . | . . Highest Corruption 5 | . 5 Average Corruption 5 | . 5 Corruption Purged . | . . Effects 34 | . 34 Message Errors 10 | . 10 Matter Fused 5 | . 5 Heat Flow Errors 4 | . 4 Energy Discharges 4 | . 4 Parts Rejected 1 | . 1 Data Loss (minor) 4 | . 4 Data Loss (major) 1 | . 1 Targeting Errors 5 | . 5 Overload Shots . | . . Overflow Damage . | . . Projectiles . | . . Explosions . | . . Melee . | . . Knockbacks . | . . Impact . | . . Kinetic . | . . Secondary . | . . Self-Inflicted Damage . | . . Shots . | . . Rammed 5 | . 5 Targets Rammed 6 | . 6 Kicked . | . . Crushed 1 | . 1 Highest Temperature 343 | . 343 Average Temperature 101 | . 101 Received Heat Transfer 366 | . 366 Effects 3 | . 3 Shutdowns 1 | . 1 Energy Bleed 1 | . 1 Short Circuit 1 | . 1 Siege Activations . | . . Robots Corrupted . | . . Combat Hostiles . | . . Parts Fried . | . . Impact Corruptions . | . . Robots Melted . | . . Combat Hostiles . | . . Parts Melted 3 | . 3 Heat Transferred 1806 | 250 1556 Parts Sabotaged . | . . Parts Stolen . | . . Parts Stripped . | . . Power Chain Reactions . | . . Missiles Intercepted . | . . Alert | -11 -10 ------- Run | Scr Mat Peak Influence 210 | 40 210 Initial 26 | . 26 Average 76 | 22 82 Maximum Alert Level 1 | . 1 Low Security (%) 97 | 100 97 Level 1 2 | . 2 Level 2 . | . . Level 3 . | . . Level 4 . | . . Level 5 . | . . High Security . | . . Max Security . | . . Squads Dispatched 3 | . 3 Investigation 1 | . 1 Extermination . | . . Reinforcement 2 | . 2 Assault . | . . Garrison . | . . Intercept . | . . Construction Impeded . | . . Haulers Reinforced . | . . Stealth | -11 -10 --------- Run | Scr Mat Distress Signals 2 | . 2 Communications Jammed . | . . Distress Signals . | . . Times Spotted 31 | . 31 Peak Tracking Total 5 | . 5 Tactical Retreats 1 | . 1 Traps | -11 -10 ------- Run | Scr Mat Traps Triggered 1 | . 1 Indirectly . | . . Trap Hack Attempts . | . . Triggered . | . . Disarmed . | . . Reprogrammed . | . . Reused . | . . Traps Extracted . | . . Installed . | . . Triggered . | . . Machines | -11 -10 ---------- Run | Scr Mat Machines Disabled . | . . Max in Single Turn . | . . Machines Sabotaged . | . . Garrisons Compromised . | . . Overloaded Fab Kills . | . . Fab Network Shutdowns . | . . Hacking | -11 -10 --------- Run | Scr Mat Machines Accessed 4 | . 4 Terminals 1 | . 1 Fabricators . | . . Repair Stations 1 | . 1 Recycling Units 2 | . 2 Scanalyzers . | . . Garrison Access . | . . Total Hacks 22 | . 22 Successful 13 | . 13 Failed 9 | . 9 Catastrophic . | . . Database Lockouts . | . . Manual 2 | . 2 Terminals 6 | . 6 Fabricators . | . . Repair Stations 11 | . 11 Recycling Units 5 | . 5 Scanalyzers . | . . Garrison Access . | . . Terminal Hacks 3 | . 3 Robot Analysis 2 | . 2 Branch Access Points 1 | . 1 Fabricator Hacks . | . . Repair Station Hacks 7 | . 7 Scan Component 4 | . 4 Repair 3 | . 3 Recycling Unit Hacks 3 | . 3 Report Inventory 1 | . 1 Retrieve Components 2 | . 2 Scanalyzer . | . . Garrison Access Hacks . | . . Unauthorized Hacks . | . . Terminals . | . . Fabricators . | . . Repair Stations . | . . Recycling Units . | . . Scanalyzers . | . . Garrison Access . | . . Data Cores Recovered . | . . Used . | . . Hacking Detections 3 | . 3 Full Trace Events . | . . Feedback Events . | . . Feedback Blocked . | . . Robot Schematics Acquired . | . . Robots Built . | . . Matter . | . . Time . | . . Total Robot Build Rating . | . . Part Schematics Acquired . | . . Parts Built . | . . Matter . | . . Time . | . . Total Part Build Rating . | . . Parts Repaired 3 | . 3 Time 78 | . 78 Parts Recycled . | . . Recycled Matter . | . . Retrieved Matter . | . . Retrieved Components 13 | . 13 Parts Scanalyzed . | . . Part Schematics Acquired . | . . Parts Damaged . | . . Bothacking | -11 -10 ------------ Run | Scr Mat Used RIF Installer . | . . Robots Hacked 1 | . 1 Non-combat 1 | . 1 Combat . | . . Robot Hacks Applied 1 | . 1 check_alert 1 | . 1 Relay Couplers Released . | . . Robots Rewired . | . . Allies Hacked . | . . Hacks Repelled . | . . Allies | -11 -10 -------- Run | Scr Mat Total Allies . | . . Largest Group . | . . Highest-Rated Group . | . . Highest-Rated Ally . | . . Total Orders . | . . Ally Attacks . | . . Total Damage . | . . Kills . | . . Allies Corrupted . | . . Allies Melted . | . . Intel | -11 -10 ------- Run | Scr Mat Robot Analysis Total 2 | . 2 Derelict Logs Recovered . | . . Drone Launches . | . . Drone Recoveries . | . . Exploration | -11 -10 ------------- Run | Scr Mat Turns Passed 1435 | 153 1282 Spaces Moved 695 | 59 636 Core . | . . Treads 298 | 45 253 Legs 14 | 14 . Wheels 383 | . 383 Hover . | . . Flight . | . . Fastest Speed 90 | 120 90 Average Speed 126 | 150 124 Slowest Speed 180 | 160 180 Overloaded Moves . | . . Propulsion Burnouts . | . . Robots Hopped . | . . Cave-ins Triggered 1 | . 1 Exploration Rate (%) 33 | 3 63 Regions Visited 1 Branch Regions . Pre-discovered Areas . | . . Known Exits Taken . | . . Unknown Exits Taken 1 | 1 . Scrap Searched . | . . Spaces Dug 2 | . 2 Terrain Destroyed 5 | . 5 Melee . | . . Projectile 5 | . 5 AOE . | . . Terrain Rammed . | . . Walls Destroyed . | . . Machines Disabled . | . . Actions | -11 -10 --------- Run | Scr Mat Total 1036 | 91 945 Wait 144 | . 144 Move 694 | 58 636 Hop . | . . Pick Up 32 | 6 26 Fast Attach 3 | 1 2 Attach 9 | 2 7 Detach 1 | 1 . Swap 12 | . 12 Drop 23 | 4 19 Fire 111 | 19 92 Melee 1 | . 1 Ram . | . . Kick . | . . Crush 6 | . 6 Escape Stasis . | . . Rewire . | . . Trap . | . . Miscellaneous . | . . Route ------- -11/Scrapyard -10/Materials (discovered 3 exits: [*Mat x2] / *Min) History --------- Turn | Location | Event 27 | -11/Scrapyard | Discovered new exit (range 3) 154 | -11/Scrapyard | Entered Materials 326 | -10/Materials | Build established: Mutant 370 | -10/Materials | Crushed by falling debris 516 | -10/Materials | Core integrity fell below 50% 634 | -10/Materials | Discovered new exit (range 16) 862 | -10/Materials | Discovered new exit (range 4) 987 | -10/Materials | Identified exit to Mines 1051 | -10/Materials | Core integrity fell below 20% 1349 | -10/Materials | Repaired Lrg. Storage Unit 1376 | -10/Materials | Repaired Grenade Launcher 1403 | -10/Materials | Repaired Wheel 1436 | -10/Materials | Destroyed by S-10 Pest with Light Assault Rifle Last Messages --------------- >>Repair Repairing Wheel... ETC: 26 01403_ Repair station completes Wheel repairs. 01403_ Acquired Wheel. 01404_ System corrupted: Matter fused (-7). 01405_ Connecting with Repair Station... >>Scan(Med. Laser) Scanning Med. Laser... Ready to Repair: Med. Laser Rating: 1 Time: 26 01405_ Dropped Broken Med. Laser. 01419_ 7&J4%JY5OPL2BQPQ|5 MJMWPULX6XYPJ%C 01419_ S-10 Pest destroyed. 01419_ Switching to secondary target: S-10 Pest. 01427_ U-05 Engineer builds a Door. 01435_ UO >2WOCMHPEROJE,NQ&B,G 01436_ S-10 Pest destroyed. Map ----- +----------------------------------------------------+ | ??????????????# # #??????????# """ #????????? | | ??????????????# #??????????# """ #????????? | | ??????????????# # #??????????# #????????? | | ??????????????##### #??????????# #????????? | | ??????????????????# #??????????####+#######????? | | ??????????????????# ########???# #????? | | ??????????????????# # % ##### #????? | | ??????????????????# # % %/ *% #????? | | ??????????????????# / """ ######+##### #????? | | ??????????????????# # """ ## # #????? | | ??????????????????# # """ ## ""# #????? | | ????????????????? # ## Y"# ##???? | | ????????????????####+########## """ ""# ##???? | | ??????????????????????????????# """ # ##???? | | ??????????????????????????????# """ # ###### | | ??????????????????????????????# """ # # ! | | ??????????????????????????????# # # | | ??????????????????????????????########### # | | ?????????????????????????????????######## # """ | | ?????????????????????????????????# # # """ | | ?????????????????????????????????# """ # # """ | | ?????????????????????????????????# """ # # | | ????????????????????#########????# """ # + """ | | ????????????#+####### ###### # # """ | | ?????????? ^ [%*%= # # # """ | | ?????????? = s >@ + " " # # | | ?????????? u r # "R" # ###### | | ?????????????#####+##" "## # """ # #????? | | ????????????????????#" !"| "## ######## #????? | | ????????????????????#"""""""## #??????# +????? | | ???????????????????########### #??????# #????? | | ???????????????????# #?# #??????# #????? | | ???????????????????# """#?# #??????# ###### | | ???????????????????# """#?# #??????# | | ???????????????????# """#?# #??????+ | | ???????????????????# #?# #??????# | | ???????????????????###+####### % ##?????#####??# | | ?????????????????????# #????????????# | | ?????????????????????# ! #????????????# | | ?????????????????????# """ #????????????# | | ?????????????????????# """ #????????????# | | ?????????????????????# """ #????????????# | | ???????????????????###^^ ^ ###############% | | ???????????????????# #]! # + | | ???????????????????# + [ # * # | | ???????????????????# # # == !!# | | ???????????????????# # ! *# = !* # | | ???????????????????# [ # # "Y"! # | | ???????????????????## ########## # """ =# | | ?????????????????#### # ###+############ | +----------------------------------------------------+ Best States ------------- Heat Dissipation 25 Energy Generation 14 Energy Capacity 250 Matter Stores 300 Matter Capacity 300 Sight Range 16 Terrain Scan Density 10 Evasion (%) 42 Recoil Reduction 2 Item Schematics ----------------- None Robot Schematics ------------------ None Fabricated ------------ Nothing Alien Tech Used ----------------- None Achievements -------------- None Challenges ------------ None Game ------ Seed CloakingAlphaRipper Manual? 0 Play Time 00:15:18 Cumulative 29.6 hours Start 2020.10.20 @ 20:56:47 End 2020.10.21 @ 07:04:23 Sessions 3 Manual Loads 0 Difficulty Rogue Special Mode None Game No. 25 Rogue 25 Adventurer 0 Explorer 0 Win Type - Total 0 Types 0/0/0/0/0/0/0/0/0 Lore% 38 Gallery% 38 Achievement% 48 Wizard Run 0 Options --------- ASCII 0 Keyboard 1 Movement Numpad Keybinds 0 Fullscreen 1 Font 12/Terminus Map View 83x54 Tactical HUD 1 Map Filters NONE Filters NONE Steam 1 RUN: fd940e50-f0d4-4372-9330-ad0cbf65d89f